fUSD/lending_fUSD_20240803
["ID","MTS","AMOUNT","RATE_DAILY","PERIOD"]
[333991245,1722666752226,-500.0,0.00018356,2]
[333991246,1722666752236,-1148.49,0.00018356,2]
[333991247,1722666752247,-650.33,0.00018356,2]
[333991248,1722666752259,-527.89,0.00018356,2]
[333991249,1722666752268,-1657.53,0.00018356,2]
[333991250,1722666752278,-643.1,0.00018356,2]
[333991251,1722666752287,-691.5,0.00018356,2]
[333991252,1722666752296,-1385.68,0.00018356,2]
[333991253,1722666752306,-534.08,0.00018356,2]
[333991254,1722666752315,-500.0,0.00018356,2]
[333991255,1722666752325,-500.0,0.00018356,2]
[333991256,1722666752334,-923.84,0.00018356,2]
[333991257,1722666752343,-1314.98,0.00018356,2]
[333991258,1722666752352,-891.69,0.00018356,2]
[333991259,1722666752362,-1413.97,0.00018356,2]
[333991260,1722666752373,-518.53,0.00018356,2]
[333991261,1722666752383,-500.0,0.00018356,2]
[333991262,1722666752392,-1485.86,0.00018356,2]
[333991263,1722666752402,-679.92,0.00018356,2]
[333991264,1722666752411,-500.0,0.00018356,2]
[333991265,1722666752421,-500.0,0.00018356,2]
[333991266,1722666752431,-1833.06,0.00018356,2]
[333991267,1722666752441,-528.86,0.00018356,2]
[333991268,1722666752451,-1392.35,0.00018356,2]
[333991269,1722666752461,-557.98,0.00018356,2]
[333991270,1722666752471,-500.0,0.00018356,2]
[333991271,1722666752480,-500.0,0.00018356,2]
[333991272,1722666752492,-500.0,0.00018356,2]
[333991273,1722666752502,-1735.04,0.00018356,2]
[333991274,1722666752511,-1099.4,0.00018356,2]
[333991275,1722666752521,-500.0,0.00018356,2]
[333991276,1722666752530,-505.74,0.00018356,2]
[333991277,1722666752539,-516.73,0.00018356,2]
[333991278,1722666752549,-587.0,0.00018356,2]
[333991279,1722666752559,-866.45,0.00018356,2]
[333991280,1722666752568,-563.21,0.00018356,2]
[333991281,1722666752578,-540.15,0.00018356,2]
[333991282,1722666752588,-500.0,0.00018356,2]
[333991283,1722666752597,-500.0,0.00018356,2]
[333991284,1722666752606,-647.2,0.00018356,2]
[333991285,1722666752615,-500.0,0.00018356,2]
[333991286,1722666752625,-1057.56,0.00018356,2]
[333991287,1722666752634,-554.21,0.00018356,2]
[333991288,1722666752645,-500.0,0.00018356,2]
[333991289,1722666752661,-1267.48,0.00018356,2]
[333991290,1722666752672,-500.0,0.00018356,2]
[333991291,1722666752682,-500.0,0.00018356,2]
[333991292,1722666752691,-500.0,0.00018356,2]
[333991293,1722666752702,-1285.81,0.00018356,2]
[333991294,1722666752711,-1985.89,0.00018356,2]
[333991295,1722666752722,-500.0,0.00018356,2]
[333991296,1722666752736,-1048.81,0.00018356,2]
[333991297,1722666752746,-500.0,0.00018356,2]
[333991298,1722666752755,-770.94,0.00018356,2]
[333991299,1722666752765,-648.16,0.00018356,2]
[333991300,1722666752774,-1630.37,0.00018356,2]
[333991301,1722666752783,-500.0,0.00018356,2]
[333991302,1722666752793,-500.0,0.00018356,2]
[333991303,1722666752802,-942.02,0.00018356,2]
[333991304,1722666752811,-500.0,0.00018356,2]
[333991305,1722666752820,-500.0,0.00018356,2]
[333991306,1722666752829,-500.0,0.00018356,2]
[333991307,1722666752838,-431.96467285,0.00018356,2]
[333991308,1722666752847,-702.76,0.00018356,2]
[333991309,1722666752857,-500.0,0.00018356,2]
[333991310,1722666752867,-500.0,0.00018356,2]
[333991311,1722666752876,-500.0,0.00018356,2]
[333991312,1722666752885,-1612.19,0.00018356,2]
[333991313,1722666752895,-542.31031691,0.00018356,2]
[333991314,1722666752904,-500.0,0.00018356,2]
[333991315,1722666752914,-1146.11,0.00018356,2]
[333991316,1722666752923,-500.0,0.00018356,2]
[333991317,1722666752933,-764.88,0.00018356,2]
[333991318,1722666752942,-500.0,0.00018356,2]
[333991319,1722666752952,-1869.99,0.00018356,2]
[333991320,1722666752961,-500.0,0.00018356,2]
[333991321,1722666752971,-1937.58,0.00018356,2]
[333991322,1722666752981,-1092.19,0.00018356,2]
[333991323,1722666752990,-500.0,0.00018356,2]
[333991324,1722666752999,-1144.97,0.00018356,2]
[333991325,1722666753008,-1286.39,0.00018356,2]
[333991326,1722666753018,-500.0,0.00018356,2]
[333991327,1722666753027,-500.0,0.00018356,2]
[333991328,1722666753037,-500.0,0.00018356,2]
[333991329,1722666753046,-1257.28,0.00018356,2]
[333991330,1722666753055,-575.74,0.00018356,2]
[333991331,1722666753065,-500.0,0.00018356,2]
[333991332,1722666753074,-790.36,0.00018356,2]
[333991333,1722666753084,-1056.65,0.00018356,2]
[333991334,1722666753094,-682.23,0.00018356,2]
[333991335,1722666753104,-500.0,0.00018356,2]
[333991336,1722666753114,-831.9,0.00018356,2]
[333991337,1722666753124,-1274.51,0.00018356,2]
[333991338,1722666753134,-971.42,0.00018356,2]
[333991339,1722666753143,-1312.76,0.00018356,2]
[333991340,1722666753153,-500.0,0.00018356,2]
[333991341,1722666753163,-500.0,0.00018356,2]
[333991342,1722666753173,-500.0,0.00018356,2]
[333991343,1722666753182,-500.0,0.00018356,2]
[333991344,1722666753192,-500.0,0.00018356,2]
[333991345,1722666753201,-500.0,0.00018356,2]
[333991346,1722666753210,-1074.3,0.00018356,2]
[333991347,1722666753220,-500.0,0.00018356,2]
[333991348,1722666753230,-634.32,0.00018356,2]
[333991349,1722666753240,-564.14,0.00018356,2]
[333991350,1722666753250,-500.0,0.00018356,2]
[333991351,1722666753259,-786.52,0.00018356,2]
[333991352,1722666753268,-500.0,0.00018356,2]
[333991353,1722666753278,-500.0,0.00018356,2]
[333991354,1722666753288,-500.0,0.00018356,2]
[333991355,1722666753297,-500.0,0.00018356,2]
[333991356,1722666753306,-1029.12,0.00018356,2]
[333991357,1722666753316,-837.07,0.00018356,2]
[333991358,1722666753326,-500.0,0.00018356,2]
[333991359,1722666753335,-1796.88,0.00018356,2]
[333991360,1722666753345,-1732.55,0.00018356,2]
[333991361,1722666753355,-500.0,0.00018356,2]
[333991362,1722666753364,-564.41042563,0.00018356,2]
[333991363,1722666753374,-500.0,0.00018356,2]
[333991364,1722666753384,-1573.42,0.00018356,2]
[333991365,1722666753394,-500.0,0.00018356,2]
[333991366,1722666753404,-854.91,0.00018356,2]
[333991367,1722666753413,-1076.12,0.00018356,2]
[333991368,1722666753423,-500.0,0.00018356,2]
[333991369,1722666753432,-500.0,0.00018356,2]
[333991370,1722666753442,-737.63,0.00018356,2]
[333991371,1722666753452,-177.25605954,0.00018356,2]
[333991372,1722666753463,-1711.13,0.00018356,2]
[333991373,1722666753472,-500.0,0.00018356,2]
[333991374,1722666753482,-500.0,0.00018356,2]
[333991375,1722666753492,-500.0,0.00018356,2]
[333991376,1722666753502,-599.32,0.00018356,2]
[333991377,1722666753511,-500.0,0.00018356,2]
[333991378,1722666753521,-500.0,0.00018356,2]
[333991379,1722666753532,-1490.49,0.00018356,2]
[333991380,1722666753542,-686.99,0.00018356,2]
[333991381,1722666753552,-500.0,0.00018356,2]
[333991382,1722666753562,-941.41,0.00018356,2]
[333991383,1722666753572,-500.0,0.00018356,2]
[333991384,1722666753582,-500.0,0.00018356,2]
[333991385,1722666753591,-500.0,0.00018356,2]
[333991386,1722666753602,-683.87,0.00018356,2]
[333991387,1722666753611,-925.99,0.00018356,2]
[333991388,1722666753620,-500.0,0.00018356,2]
[333991389,1722666753630,-518.33,0.00018356,2]
[333991390,1722666753639,-1190.09,0.00018356,2]
[333991391,1722666753649,-500.0,0.00018356,2]
[333991392,1722666753663,-500.0,0.00018356,2]
[333991393,1722666753672,-500.0,0.00018356,2]
[333991394,1722666753682,-775.59,0.00018356,2]
[333991395,1722666753691,-500.0,0.00018356,2]
[333991396,1722666753702,-850.78,0.00018356,2]
[333991397,1722666753712,-500.0,0.00018356,2]
[333991398,1722666753723,-1150.61,0.00018356,2]
[333991399,1722666753736,-500.0,0.00018356,2]
[333991400,1722666753745,-1249.02,0.00018356,2]
[333991401,1722666753755,-1183.94,0.00018356,2]
[333991402,1722666753765,-500.0,0.00018356,2]
[333991403,1722666753775,-500.0,0.00018356,2]
[333991404,1722666753785,-714.61,0.00018356,2]
[333991405,1722666753795,-500.0,0.00018356,2]
[333991406,1722666753805,-619.81,0.00018356,2]
[333991407,1722666753815,-1412.03,0.00018356,2]
[333991408,1722666753826,-557.22,0.00018356,2]
[333991409,1722666753835,-500.0,0.00018356,2]
[333991410,1722666753844,-500.0,0.00018356,2]
[333991411,1722666753854,-901.04,0.00018356,2]
[333991412,1722666753864,-1245.11,0.00018356,2]
[333991413,1722666753873,-1551.65,0.00018356,2]
[333991414,1722666753883,-502.30581463,0.00018356,2]
[333991415,1722666753892,-829.01,0.00018356,2]
[333991416,1722666753902,-563.09,0.00018356,2]
[333991417,1722666753911,-523.94,0.00018356,2]
[333991418,1722666753921,-1086.27,0.00018356,2]
[333991419,1722666753930,-554.91,0.00018356,2]
[333991420,1722666753940,-500.0,0.00018356,2]
[333991421,1722666753950,-500.0,0.00018356,2]
[333991422,1722666753960,-500.0,0.00018356,2]
[333991423,1722666753970,-1346.52,0.00018356,2]
[333991424,1722666753979,-1087.56,0.00018356,2]
[333991425,1722666753990,-1404.5,0.00018356,2]
[333991426,1722666753999,-500.0,0.00018356,2]
[333991427,1722666754009,-500.0,0.00018356,2]
[333991428,1722666754019,-783.81,0.00018356,2]
[333991429,1722666754028,-500.0,0.00018356,2]
[333991430,1722666754038,-1999.59,0.00018356,2]
[333991431,1722666754047,-500.0,0.00018356,2]
[333991432,1722666754057,-669.89,0.00018356,2]
[333991433,1722666754066,-500.0,0.00018356,2]
[333991434,1722666754076,-500.0,0.00018356,2]
[333991435,1722666754086,-791.15,0.00018356,2]
[333991436,1722666754096,-1652.52,0.00018356,2]
[333991437,1722666754106,-936.75,0.00018356,2]
[333991438,1722666754116,-1126.33,0.00018356,2]
[333991439,1722666754125,-500.0,0.00018356,2]
[333991440,1722666754135,-500.0,0.00018356,2]
[333991441,1722666754144,-1115.3,0.00018356,2]
[333991442,1722666754153,-1818.33,0.00018356,2]
[333991443,1722666754163,-621.62,0.00018356,2]
[333991444,1722666754172,-500.0,0.00018356,2]
[333991445,1722666754181,-814.86,0.00018356,2]
[333991446,1722666754191,-500.0,0.00018356,2]
[333991447,1722666754200,-764.75,0.00018356,2]
[333991448,1722666754210,-500.0,0.00018356,2]
[333991449,1722666754220,-721.8,0.00018356,2]
[333991450,1722666754230,-500.0,0.00018356,2]
[333991451,1722666754240,-500.0,0.00018356,2]
[333991452,1722666754250,-1488.46,0.00018356,2]
[333991453,1722666754260,-500.0,0.00018356,2]
[333991454,1722666754270,-500.0,0.00018356,2]
[333991455,1722666754280,-500.0,0.00018356,2]
[333991456,1722666754290,-1556.25,0.00018356,2]
[333991457,1722666754301,-500.0,0.00018356,2]
[333991458,1722666754311,-500.0,0.00018356,2]
[333991459,1722666754322,-930.37,0.00018356,2]
[333991460,1722666754332,-1099.96,0.00018356,2]
[333991461,1722666754343,-541.23,0.00018356,2]
[333991462,1722666754353,-862.02,0.00018356,2]
[333991463,1722666754363,-782.39,0.00018356,2]
[333991464,1722666754373,-665.68,0.00018356,2]
[333991465,1722666754384,-500.0,0.00018356,2]
[333991466,1722666754394,-500.0,0.00018356,2]
[333991467,1722666754404,-500.0,0.00018356,2]
[333991468,1722666754414,-660.12,0.00018356,2]
[333991469,1722666754424,-708.64,0.00018356,2]
[333991470,1722666754434,-500.0,0.00018356,2]
[333991471,1722666754444,-709.52,0.00018356,2]
[333991472,1722666754454,-500.0,0.00018356,2]
[333991473,1722666754464,-510.64,0.00018356,2]
[333991474,1722666754473,-500.0,0.00018356,2]
[333991475,1722666754484,-681.92,0.00018356,2]
[333991476,1722666754495,-500.0,0.00018356,2]
[333991477,1722666754505,-500.0,0.00018356,2]
[333991478,1722666754514,-500.0,0.00018356,2]
[333991479,1722666754524,-1423.39,0.00018356,2]
[333991480,1722666754535,-500.0,0.00018356,2]
[333991481,1722666754545,-3672.91,0.00018356,2]
[333991482,1722666754555,-796.7,0.00018356,2]
[333991483,1722666754565,-500.0,0.00018356,2]
[333991484,1722666754575,-714.52,0.00018356,2]
[333991485,1722666754584,-2042.73,0.00018356,2]
[333991486,1722666754594,-500.0,0.00018356,2]
[333991487,1722666754604,-552.5,0.00018356,2]
[333991488,1722666754615,-1054.46,0.00018356,2]
[333991489,1722666754625,-500.0,0.00018356,2]
[333991490,1722666754635,-2805.89,0.00018356,2]
[333991491,1722666754645,-675.88,0.00018356,2]
[333991492,1722666754658,-1433.51,0.00018356,2]
[333991493,1722666754668,-1088.81,0.00018356,2]
[333991494,1722666754678,-500.0,0.00018356,2]
[333991495,1722666754688,-4007.83,0.00018356,2]
[333991496,1722666754699,-762.84,0.00018356,2]
[333991497,1722666754709,-3217.66,0.00018356,2]
[333991498,1722666754719,-500.0,0.00018356,2]
[333991499,1722666754730,-500.0,0.00018356,2]
[333991500,1722666754740,-2200.75,0.00018356,2]
[333991501,1722666754750,-951.76,0.00018356,2]
[333991502,1722666754761,-1702.58,0.00018356,2]
[333991503,1722666754771,-2092.77,0.00018356,2]
[333991504,1722666754781,-652.04,0.00018356,2]
[333991505,1722666754791,-513.31825531,0.00018356,2]
[333991506,1722666754801,-500.0,0.00018356,2]
[333991507,1722666754810,-5244.42,0.00018356,2]
[333991508,1722666754820,-500.0,0.00018356,2]
[333991509,1722666754831,-693.09,0.00018356,2]
[333991510,1722666754841,-761.36,0.00018356,2]
[333991511,1722666754851,-2061.72,0.00018356,2]
[333991512,1722666754861,-2038.36,0.00018356,2]
[333991513,1722666754870,-4346.28,0.00018356,2]
[333991514,1722666754880,-1475.27,0.00018356,2]
[333991515,1722666754890,-710.45,0.00018356,2]
[333991516,1722666754900,-744.05,0.00018356,2]
[333991517,1722666754910,-1223.68,0.00018356,2]
[333991518,1722666754920,-1359.7,0.00018356,2]
[333991519,1722666754930,-500.0,0.00018356,2]
[333991520,1722666754940,-4500.27,0.00018356,2]
[333991521,1722666754951,-1729.93,0.00018356,2]
[333991522,1722666754961,-11630.47,0.00018356,2]
[333991523,1722666754971,-842.12,0.00018356,2]
[333991524,1722666754981,-7815.4,0.00018356,2]
[333991525,1722666754991,-1992.28,0.00018356,2]
[333991526,1722666755001,-500.0,0.00018356,2]
[333991527,1722666755011,-872.75,0.00018356,2]
[333991528,1722666755020,-1230.65,0.00018356,2]
[333991529,1722666755030,-1652.65,0.00018356,2]
[333991530,1722666755040,-1417.26,0.00018356,2]
[333991531,1722666755049,-456.84300276,0.00018356,2]
[333991532,1722666755059,-500.0,0.00018356,2]
[333991533,1722666755068,-24317.71,0.00018356,2]
[333991534,1722666755079,-500.0,0.00018356,2]
[333991535,1722666755090,-1381.62,0.00018356,2]
[333991536,1722666755099,-8359.0,0.00018356,2]
[333991537,1722666755110,-500.0,0.00018356,2]
[333991538,1722666755119,-2959.52,0.00018356,2]
[333991539,1722666755130,-465.66890321,0.00018356,2]
[333991540,1722666755139,-1125.68,0.00018356,2]
[333991541,1722666755148,-2625.72,0.00018356,2]
[333991542,1722666755160,-500.0,0.00018356,2]
[333991543,1722666755170,-541.08,0.00018356,2]
[333991544,1722666755180,-1606.59,0.00018356,2]
[333991545,1722666755190,-4129.44,0.00018356,2]
[333991546,1722666755199,-363.55538288,0.00018356,2]
[333991547,1722666755449,-765.03,0.00018356,2]
[333991548,1722666755459,-500.0,0.00018356,2]
[333991549,1722666755470,-1071.89,0.00018356,2]
[333991550,1722666755481,-8009.82,0.00018356,2]
[333991551,1722666755492,-500.0,0.00018356,2]
[333991552,1722666755504,-500.0,0.00018356,2]
[333991553,1722666755514,-4309.68,0.00018356,2]
[333991554,1722666755525,-677.22,0.00018356,2]
[333991555,1722666755535,-500.0,0.00018356,2]
[333991556,1722666755545,-500.0,0.00018356,2]
[333991557,1722666755555,-500.0,0.00018356,2]
[333991558,1722666755565,-3498.32,0.00018356,2]
[333991559,1722666755575,-1008.21,0.00018356,2]
[333991560,1722666755584,-500.0,0.00018356,2]
[333991561,1722666755594,-678.45,0.00018356,2]
[333991562,1722666755604,-2091.29,0.00018356,2]
[333991563,1722666755614,-3261.4,0.00018356,2]
[333991564,1722666755624,-251.70460835,0.00018356,2]
[333991565,1722666755634,-2329.21,0.00018356,2]
[333991566,1722666755644,-1982.62,0.00018356,2]
[333991567,1722666755655,-6585.94,0.00018356,2]
[333991568,1722666755666,-532.0,0.00018356,2]
[333991569,1722666755676,-2347.25,0.00018356,2]
[333991570,1722666755685,-595.79,0.00018356,2]
[333991571,1722666755695,-1438.93,0.00018356,2]
[333991572,1722666755706,-500.0,0.00018356,2]
[333991573,1722666755716,-1558.03,0.00018356,2]
[333991574,1722666755726,-12013.62,0.00018356,2]
[333991575,1722666755744,-3194.48,0.00018356,2]
[333991576,1722666755753,-3237.49,0.00018356,2]
[333991577,1722666755763,-2240.39,0.00018356,2]
[333991578,1722666755772,-1275.84,0.00018356,2]
[333991579,1722666755782,-1245.88,0.00018356,2]
[333991580,1722666755792,-869.05,0.00018356,2]
[333991581,1722666755803,-500.0,0.00018356,2]
[333991582,1722666755812,-500.0,0.00018356,2]
[333991583,1722666755823,-3558.7,0.00018356,2]
[333991584,1722666755832,-1516.63,0.00018356,2]
[333991585,1722666755842,-2444.23,0.00018356,2]
[333991586,1722666755852,-4848.71,0.00018356,2]
[333991587,1722666755863,-2528.58,0.00018356,2]
[333991588,1722666755873,-7111.63,0.00018356,2]
[333991589,1722666755883,-1234.51,0.00018356,2]
[333991590,1722666755893,-1577.42,0.00018356,2]
[333991591,1722666755902,-500.0,0.00018356,2]
[333991592,1722666755912,-3976.74,0.00018356,2]
[333991593,1722666755922,-914.84,0.00018356,2]
[333991594,1722666755931,-1179.29,0.00018356,2]
[333991595,1722666755941,-522.63,0.00018356,2]
[333991596,1722666755951,-2341.98,0.00018356,2]
[333991597,1722666755961,-2827.3,0.00018356,2]
[333991598,1722666755971,-1379.48,0.00018356,2]
[333991599,1722666755981,-13569.7,0.00018356,2]
[333991600,1722666755992,-1254.92,0.00018356,2]
[333991601,1722666756002,-989.03,0.00018356,2]
[333991602,1722666756011,-867.22,0.00018356,2]
[333991603,1722666756021,-1520.15,0.00018356,2]
[333991604,1722666756031,-4544.83,0.00018356,2]
[333991605,1722666756040,-1100.73,0.00018356,2]
[333991606,1722666756050,-797.96,0.00018356,2]
[333991607,1722666756060,-500.0,0.00018356,2]
[333991608,1722666756071,-799.61,0.00018356,2]
[333991609,1722666756080,-500.0,0.00018356,2]
[333991610,1722666756091,-5638.64,0.00018356,2]
[333991611,1722666756101,-1242.0,0.00018356,2]
[333991612,1722666756111,-500.0,0.00018356,2]
[333991613,1722666756120,-500.0,0.00018356,2]
[333991614,1722666756130,-500.0,0.00018356,2]
[333991615,1722666756140,-941.33,0.00018356,2]
[333991616,1722666756149,-1488.46,0.00018356,2]
[333991617,1722666756159,-560.97,0.00018356,2]
[333991618,1722666756169,-500.0,0.00018356,2]
[333991619,1722666756180,-920.3,0.00018356,2]
[333991620,1722666756189,-3017.99,0.00018356,2]
[333991621,1722666756199,-500.0,0.00018356,2]
[333991622,1722666756208,-1976.61,0.00018356,2]
[333991623,1722666756219,-980.35,0.00018356,2]
[333991624,1722666756229,-2347.93,0.00018356,2]
[333991625,1722666756242,-500.0,0.00018356,2]
[333991626,1722666756251,-3028.02,0.00018356,2]
[333991627,1722666756262,-1182.86,0.00018356,2]
[333991628,1722666756272,-1315.97,0.00018356,2]
[333991629,1722666756282,-663.52,0.00018356,2]
[333991630,1722666756291,-1429.57,0.00018356,2]
[333991631,1722666756301,-1009.6,0.00018356,2]
[333991632,1722666756311,-500.0,0.00018356,2]
[333991633,1722666756322,-500.0,0.00018356,2]
[333991634,1722666756332,-535.59,0.00018356,2]
[333991635,1722666756343,-1659.64,0.00018356,2]
[333991636,1722666756353,-2820.52,0.00018356,2]
[333991637,1722666756363,-2112.36,0.00018356,2]
[333991638,1722666756373,-4031.55,0.00018356,2]
[333991639,1722666756383,-2096.17,0.00018356,2]
[333991640,1722666756393,-1049.02,0.00018356,2]
[333991641,1722666756403,-10150.27,0.00018356,2]
[333991642,1722666756413,-1206.49,0.00018356,2]
[333991643,1722666756423,-1122.59,0.00018356,2]
[333991644,1722666756432,-576.06,0.00018356,2]
[333991645,1722666756443,-1726.0,0.00018356,2]
[333991646,1722666756453,-793.05,0.00018356,2]
[333991647,1722666756463,-3672.81,0.00018356,2]
[333991648,1722666756473,-3286.16,0.00018356,2]
[333991649,1722666756484,-3453.65,0.00018356,2]
[333991650,1722666756494,-500.0,0.00018356,2]
[333991651,1722666756504,-1612.0,0.00018356,2]
[333991652,1722666756514,-15160.97,0.00018356,2]
[333991653,1722666756524,-1516.13,0.00018356,2]
[333991654,1722666756534,-1029.84,0.00018356,2]
[333991655,1722666756545,-1177.76,0.00018356,2]
[333991656,1722666756555,-500.0,0.00018356,2]
[333991657,1722666756566,-681.33,0.00018356,2]
[333991658,1722666756576,-7716.14,0.00018356,2]
[333991659,1722666756587,-500.0,0.00018356,2]
[333991660,1722666756598,-2110.03,0.00018356,2]
[333991661,1722666756608,-1577.4,0.00018356,2]
[333991662,1722666756620,-5511.15,0.00018356,2]
[333991663,1722666756630,-500.0,0.00018356,2]
[333991664,1722666756641,-1050.57,0.00018356,2]
[333991665,1722666756652,-797.55,0.00018356,2]
[333991666,1722666756666,-2534.68,0.00018356,2]
[333991667,1722666756676,-500.0,0.00018356,2]
[333991668,1722666756686,-2306.35,0.00018356,2]
[333991669,1722666756696,-3191.49,0.00018356,2]
[333991670,1722666756707,-681.76,0.00018356,2]
[333991671,1722666756716,-500.0,0.00018356,2]
[333991672,1722666756726,-517.29,0.00018356,2]
[333991673,1722666756739,-2590.66,0.00018356,2]
[333991674,1722666756749,-500.0,0.00018356,2]
[333991675,1722666756759,-2269.33,0.00018356,2]
[333991676,1722666756769,-500.0,0.00018356,2]
[333991677,1722666756778,-571.15,0.00018356,2]
[333991678,1722666756789,-4486.63,0.00018356,2]
[333991679,1722666756800,-1395.7,0.00018356,2]
[333991680,1722666756810,-2172.92,0.00018356,2]
[333991681,1722666756822,-927.9,0.00018356,2]
[333991682,1722666756832,-642.08,0.00018356,2]
[333991683,1722666756844,-500.0,0.00018356,2]
[333991684,1722666756855,-1875.47,0.00018356,2]
[333991685,1722666756866,-551.94,0.00018356,2]
[333991686,1722666756876,-1703.59,0.00018356,2]
[333991687,1722666756885,-1746.66,0.00018356,2]
[333991688,1722666756895,-500.0,0.00018356,2]
[333991689,1722666756904,-500.0,0.00018356,2]
[333991690,1722666756914,-784.82,0.00018356,2]
[333991691,1722666756924,-591.2,0.00018356,2]
[333991692,1722666756934,-849.08,0.00018356,2]
[333991693,1722666756944,-3768.21,0.00018356,2]
[333991694,1722666756954,-876.21,0.00018356,2]
[333991695,1722666756964,-400.0,0.00018356,2]
[333991696,1722666756974,-1805.68,0.00018356,2]
[333991697,1722666756984,-3769.02,0.00018356,2]
[333991698,1722666756994,-2265.81,0.00018356,2]
[333991699,1722666757004,-824.9,0.00018356,2]
[333991700,1722666757013,-1540.49,0.00018356,2]
[333991701,1722666757023,-614.94,0.00018356,2]
[333991702,1722666757034,-3464.14,0.00018356,2]
[333991703,1722666757044,-3761.09,0.00018356,2]
[333991704,1722666757054,-5639.15,0.00018356,2]
[333991705,1722666757065,-2239.27,0.00018356,2]
[333991706,1722666757075,-617.86,0.00018356,2]
[333991707,1722666757085,-650.38,0.00018356,2]
[333991708,1722666757094,-991.2,0.00018356,2]
[333991709,1722666757104,-3794.93,0.00018356,2]
[333991710,1722666757113,-500.0,0.00018356,2]
[333991711,1722666757124,-6154.67,0.00018356,2]
[333991712,1722666757135,-610.3,0.00018356,2]
[333991713,1722666757147,-1846.35,0.00018356,2]
[333991714,1722666757157,-2062.14,0.00018356,2]
[333991715,1722666757168,-7006.55,0.00018356,2]
[333991716,1722666757178,-500.0,0.00018356,2]
[333991717,1722666757188,-500.0,0.00018356,2]
[333991718,1722666757198,-654.74,0.00018356,2]
[333991719,1722666757209,-2260.06,0.00018356,2]
[333991720,1722666757218,-1671.01,0.00018356,2]
[333991721,1722666757228,-810.7,0.00018356,2]
[333991722,1722666757238,-2426.51,0.00018356,2]
[333991723,1722666757248,-500.0,0.00018356,2]
[333991724,1722666757258,-9425.49,0.00018356,2]
[333991725,1722666757268,-500.0,0.00018356,2]
[333991726,1722666757278,-1017.09,0.00018356,2]
[333991727,1722666757288,-706.97,0.00018356,2]
[333991728,1722666757298,-9197.15,0.00018356,2]
[333991729,1722666757309,-1431.9,0.00018356,2]
[333991730,1722666757319,-18960.81,0.00018356,2]
[333991731,1722666757329,-500.0,0.00018356,2]
[333991732,1722666757339,-500.0,0.00018356,2]
[333991733,1722666757349,-803.92,0.00018356,2]
[333991734,1722666757358,-666.06,0.00018356,2]
[333991735,1722666757369,-2204.57,0.00018356,2]
[333991736,1722666757379,-1958.7,0.00018356,2]
[333991737,1722666757389,-2126.17,0.00018356,2]
[333991738,1722666757399,-684.75,0.00018356,2]
[333991739,1722666757408,-2113.7,0.00018356,2]
[333991740,1722666757418,-876.59,0.00018356,2]
[333991741,1722666757427,-580.14,0.00018356,2]
[333991742,1722666757437,-3958.71,0.00018356,2]
[333991743,1722666757447,-1366.09,0.00018356,2]
[333991744,1722666757457,-1636.82,0.00018356,2]